fUSD/lending_fUSD_20250127
["ID","MTS","AMOUNT","RATE_DAILY","PERIOD"]
[350576349,1737967881378,-576.36,0.00011999,2]
[350576350,1737967881386,-3278.66123965,0.00011999,2]
[350576351,1737967881400,-576.41082746,0.00011999,2]
[350576352,1737967881410,-3002.04,0.00011999,2]
[350576353,1737967881422,-3002.04,0.00011999,2]
[350576354,1737967881434,-3002.04,0.00011999,2]
[350576355,1737967881446,-3002.04,0.00011999,2]
[350576356,1737967881457,-3002.04,0.00011999,2]
[350576357,1737967881470,-3002.04,0.00011999,2]
[350576358,1737967881480,-3002.15319515,0.00011999,2]
[350576359,1737967881490,-500.0,0.00011999,2]
[350576360,1737967881500,-500.0,0.00011999,2]
[350576361,1737967881510,-500.0,0.00011999,2]
[350576362,1737967881520,-500.0,0.00011999,2]
[350576363,1737967881529,-500.0,0.00011999,2]
[350576364,1737967881539,-500.0,0.00011999,2]
[350576365,1737967881549,-500.0,0.00011999,2]
[350576366,1737967881558,-419.55,0.00011999,2]
[350576367,1737967881568,-603.41,0.00011999,2]
[350576368,1737967881578,-603.41,0.00011999,2]
[350576369,1737967881587,-603.41,0.00011999,2]
[350576370,1737967881597,-603.41,0.00011999,2]
[350576371,1737967881606,-603.41,0.00011999,2]
[350576372,1737967881615,-603.41,0.00011999,2]
[350576373,1737967881624,-603.45,0.00011999,2]
[350576374,1737967881635,-589.56,0.00011999,2]
[350576375,1737967881644,-589.56,0.00011999,2]
[350576376,1737967881653,-589.56,0.00011999,2]
[350576377,1737967881663,-589.56,0.00011999,2]
[350576378,1737967881672,-589.56,0.00011999,2]
[350576379,1737967881681,-589.56,0.00011999,2]
[350576380,1737967881691,-810.92,0.00011999,2]
[350576381,1737967881699,-589.56,0.00011999,2]
[350576382,1737967881712,-810.92,0.00011999,2]
[350576383,1737967881721,-589.68089852,0.00011999,2]
[350576384,1737967881731,-810.92,0.00011999,2]
[350576385,1737967881740,-810.92,0.00011999,2]
[350576386,1737967881749,-810.92,0.00011999,2]
[350576387,1737967881758,-810.92,0.00011999,2]
[350576388,1737967881767,-810.92,0.00011999,2]
[350576389,1737967881776,-811.14,0.00011999,2]
[350576390,1737967881786,-751.86,0.00011999,2]
[350576391,1737967881795,-751.86,0.00011999,2]
[350576392,1737967881804,-500.0,0.00011999,2]
[350576393,1737967881813,-500.0,0.00011999,2]
[350576394,1737967881822,-751.86,0.00011999,2]
[350576395,1737967881831,-630.44,0.00011999,2]
[350576396,1737967881841,-751.86,0.00011999,2]
[350576397,1737967881850,-751.86,0.00011999,2]
[350576398,1737967881860,-751.86,0.00011999,2]
[350576399,1737967881869,-752.06000001,0.00011999,2]
[350576400,1737967881879,-515.46,0.00011999,2]
[350576401,1737967881888,-515.46,0.00011999,2]
[350576402,1737967881898,-515.46,0.00011999,2]
[350576403,1737967881907,-515.46,0.00011999,2]
[350576404,1737967881916,-515.46,0.00011999,2]
[350576405,1737967881925,-515.46,0.00011999,2]
[350576406,1737967881934,-515.46,0.00011999,2]
[350576407,1737967881944,-515.51855898,0.00011999,2]
[350576408,1737967881954,-55045.52,0.00011999,2]
[350576409,1737967881964,-745.46430738,0.00012,2]
[350576410,1737967881973,-1000.0,0.00012,5]
[350576411,1737967881983,-1140836.84420298,0.00012,2]
[350576412,1737967882204,-727.95966854,0.00012,2]
[350576413,1737967882219,-500.0,0.00012,2]
[350576414,1737967882231,-302.516,0.00012,2]
[350576415,1737967882388,-1643.96081435,0.00011998,2]
[350576416,1737967882398,-707.7681529,0.00012,2]
[350576417,1737967882409,-3781.76332134,0.00012,2]
[350576418,1737967882421,-782.70722424,0.00012,2]
[350576419,1737967882432,-418.54789703,0.00012,2]
[350576420,1737967882444,-107871.03754319,0.00012,2]
[350576421,1737967882630,-9878.62767785,0.00012,2]
[350576422,1737967882699,-27936.74316983,0.00012,2]
[350576423,1737967882714,-44127.16580446,0.00012,2]
[350576424,1737967882727,-19020.37899792,0.00012,2]
[350576425,1737967882739,-2133.45542437,0.00012,2]
[350576426,1737967882750,-530.69259837,0.00012,2]
[350576427,1737967882761,-2407.15091,0.00012,2]
[350576428,1737967882772,-667.37843438,0.00012,2]
[350576429,1737967882784,-40868.03694241,0.00012,2]
[350576430,1737967883099,-2212.58,0.00010958,2]
[350576431,1737967883109,-2212.58,0.00010958,2]
[350576432,1737967883118,-2212.58,0.00011098,2]
[350576433,1737967883127,-2212.58,0.00011767,2]
[350576434,1737967883135,-2212.58,0.00011876,2]
[350576435,1737967883144,-2212.58,0.00011878,2]
[350576436,1737967883153,-116.75591391,0.00011897,2]
[350576437,1737967883183,-459.67704498,0.00011897,2]
[350576438,1737967883194,-1636.14704111,0.00011897,2]
[350576439,1737967883205,-1028.40805382,0.00011918,2]
[350576440,1737967883230,-273.79713915,0.00011918,2]
[350576441,1737967883395,-270.86928748,0.000119,2]
[350576442,1737967883405,-910.37480703,0.00011918,2]
[350576443,1737967883414,-2212.58,0.00011918,2]
[350576444,1737967883423,-2212.58,0.00011918,2]
[350576445,1737967883434,-2212.58,0.00011918,2]
[350576446,1737967883444,-2212.58,0.00011918,2]
[350576447,1737967883455,-2212.58,0.00011918,2]
[350576448,1737967883464,-2160.82814871,0.00011918,2]
[350576449,1737967883519,-51.75185129,0.00011918,2]
[350576450,1737967883529,-994.06568125,0.00011996,2]
[350576451,1737967883540,-1218.51431875,0.00011996,2]
[350576452,1737967883552,-2212.58,0.00011997,2]
[350576453,1737967883561,-2212.58,0.00011997,2]
[350576454,1737967883571,-2212.58,0.00011998,2]
[350576455,1737967883579,-2212.58,0.00011998,2]
[350576456,1737967883588,-2212.58,0.00011998,2]
[350576457,1737967883597,-2212.58,0.00011998,2]
[350576458,1737967883606,-2212.58,0.00011998,2]
[350576459,1737967883615,-2212.58,0.00011998,2]
[350576460,1737967883625,-2212.58,0.00011998,2]
[350576461,1737967883634,-53086.01568125,0.00012,2]
[350576462,1737967883666,-599.9896019,0.000119,2]
[350576464,1737968032282,1019.96,8.849e-05,2]
[350576465,1737968093953,11899.07162588,0.00014011,14]
[350576480,1737968578029,1500.0,9.494e-05,2]
[350576481,1737968621554,1000.0,9.494e-05,2]
[350576491,1737968650812,311.91,9.501e-05,2]
[350576495,1737968746015,200.0,9.493e-05,2]
[350576496,1737968769239,250.0,9.5e-05,2]
[350576500,1737968923749,968.96,8.219e-05,2]
[350576514,1737968978667,250.0,9.496e-05,2]
[350576515,1737968993391,185.61,7.591e-05,2]
[350576519,1737969032314,-435.06,9.512e-05,2]
[350576520,1737969032324,-172.54,9.513e-05,2]
[350576521,1737969032335,-756.10176898,9.525e-05,2]
[350576522,1737969032346,-5101.75823102,9.525e-05,2]
[350576523,1737969032355,-300.0,9.781e-05,2]
[350576524,1737969032366,-171.7,9.782e-05,2]
[350576525,1737969032375,-191.60208421,9.782e-05,2]
[350576526,1737969032387,-2852.90352081,9.782e-05,2]
[350576527,1737969032396,-194.91891976,0.00010037,2]
[350576528,1737969032406,-185.05,0.00010048,2]
[350576529,1737969032415,-151.81,0.00010137,2]
[350576530,1737969032424,-170.34,0.00010137,2]
[350576531,1737969032434,-234.08,0.00010318,2]
[350576532,1737969032443,-173.79330583,0.0001032,2]
[350576533,1737969032480,-60.28669417,0.0001032,2]
[350576534,1737969032490,-234.08,0.00010323,2]
[350576535,1737969032499,-234.08,0.00010326,2]
[350576536,1737969032509,-234.08,0.00010329,2]
[350576537,1737969032518,-234.08,0.00010331,2]
[350576538,1737969032527,-234.08,0.00010334,2]
[350576539,1737969032536,-234.08,0.00010337,2]
[350576540,1737969032545,-300.0,0.00010338,2]
[350576541,1737969032555,-234.08,0.00010339,2]
[350576542,1737969032564,-234.08,0.00010342,2]
[350576543,1737969032572,-234.08,0.00010345,2]
[350576544,1737969032582,-234.08,0.00010348,2]
[350576545,1737969032595,-234.08,0.0001035,2]
[350576546,1737969032604,-234.08,0.00010353,2]
[350576547,1737969032614,-234.08,0.00010356,2]
[350576548,1737969032623,-234.08,0.00010358,2]
[350576549,1737969032634,-234.08,0.00010361,2]
[350576550,1737969032643,-234.08,0.00010364,2]
[350576551,1737969032654,-234.08,0.00010367,2]
[350576552,1737969032663,-234.08,0.00010369,2]
[350576553,1737969032673,-654.15,0.00010424,2]
[350576554,1737969032683,-196.82030537,0.00010445,2]
[350576555,1737969032692,-968.96,0.0001045,2]
[350576556,1737969032702,-847.4,0.00010532,2]
[350576557,1737969032711,-250.0,0.00010595,2]
[350576558,1737969032720,-1000.0,0.00010681,2]
[350576559,1737969032730,-420.0,0.00010759,2]
[350576560,1737969032739,-948.13,0.00010836,2]
[350576561,1737969032748,-191.6020842,0.00010858,2]
[350576562,1737969032757,-355.8029,0.00010858,2]
[350576563,1737969032767,-245.7,0.00010858,2]
[350576564,1737969032776,-252.62,0.00010858,2]
[350576565,1737969032788,-253.79,0.00010858,2]
[350576567,1737969032797,-5000.0,0.00010858,2]
[350576569,1737969032807,-1000.0,0.00010858,2]
[350576571,1737969032816,-1773.0868,0.00010939,2]
[350576572,1737969032825,-403.13644929,0.00010958,2]
[350576574,1737969032835,-500.0,0.00010958,2]
[350576576,1737969032847,-500.0,0.00010958,2]
[350576578,1737969032857,-500.0,0.00010958,2]
[350576580,1737969032867,-500.0,0.00010958,2]
[350576582,1737969032878,-500.0,0.00010958,2]
[350576583,1737969032889,-349.23951969,0.00010958,2]
[350576584,1737969032899,-500.0,0.00010958,2]
[350576585,1737969032909,-500.0,0.00010958,2]
[350576586,1737969032918,-500.0,0.00010958,2]
[350576587,1737969032929,-500.0,0.00010958,2]
[350576588,1737969032939,-505.73971225,0.00010958,2]
[350576589,1737969032948,-597.71424144,0.00010958,2]
[350576590,1737969032958,-536.83766987,0.00010958,2]
[350576592,1737969032967,-500.0,0.00010958,2]
[350576594,1737969032976,-500.0,0.00010958,2]
[350576596,1737969032985,-500.0,0.00010958,2]
[350576598,1737969032994,-500.0,0.00010958,2]
[350576600,1737969033003,-500.0,0.00010958,2]
[350576602,1737969033012,-500.0,0.00010958,2]
[350576604,1737969033021,-500.0,0.00010958,2]
[350576606,1737969033031,-500.0,0.00010958,2]
[350576608,1737969033040,-500.0,0.00010958,2]
[350576610,1737969033049,-500.0,0.00010958,2]
[350576613,1737969033063,-500.0,0.00010958,2]
[350576615,1737969033073,-500.0,0.00010958,2]
[350576617,1737969033083,-500.0,0.00010958,2]
[350576619,1737969033094,-500.0,0.00010958,2]
[350576620,1737969033103,-500.0,0.00010958,2]
[350576623,1737969033114,-500.0,0.00010958,2]
[350576625,1737969033124,-502.49885577,0.00010958,2]
[350576627,1737969033136,-500.0,0.00010958,2]
[350576628,1737969033146,-500.0,0.00010958,2]
[350576629,1737969033155,-500.0,0.00010958,2]
[350576630,1737969033166,-500.0,0.00010958,2]
[350576631,1737969033176,-500.0,0.00010958,2]
[350576632,1737969033186,-500.0,0.00010958,2]
[350576633,1737969033195,-500.0,0.00010958,2]
[350576634,1737969033205,-500.0,0.00010958,2]
[350576635,1737969033215,-502.48281567,0.00010958,2]
[350576636,1737969033226,-505.67603497,0.00010958,2]
[350576637,1737969033236,-500.0,0.00010958,2]
[350576638,1737969033246,-500.0,0.00010958,2]
[350576639,1737969033256,-500.0,0.00010958,2]
[350576640,1737969033266,-500.0,0.00010958,2]
[350576641,1737969033276,-500.0,0.00010958,2]
[350576642,1737969033286,-500.0,0.00010958,2]
[350576643,1737969033296,-500.0,0.00010958,2]
[350576644,1737969033307,-500.46146395,0.00010958,2]
[350576645,1737969033318,-500.0,0.00010958,2]
[350576646,1737969033328,-500.0,0.00010958,2]
[350576647,1737969033339,-500.0,0.00010958,2]
[350576648,1737969033349,-500.0,0.00010958,2]
[350576649,1737969033359,-500.0,0.00010958,2]
[350576650,1737969033368,-500.0,0.00010958,2]
[350576651,1737969033378,-502.72229356,0.00010958,2]
[350576652,1737969033389,-500.0,0.00010958,2]
[350576653,1737969033399,-500.0,0.00010958,2]
[350576654,1737969033409,-500.0,0.00010958,2]
[350576655,1737969033418,-500.0,0.00010958,2]
[350576656,1737969033427,-499.56964928,0.00010958,2]
[350576657,1737969033437,-175.79307873,0.00010958,2]
[350576658,1737969033463,-324.20692127,0.00010958,2]
[350576659,1737969033473,-500.0,0.00010958,2]
[350576660,1737969033482,-500.0,0.00010958,2]
[350576661,1737969033493,-516.41956603,0.00010958,2]
[350576662,1737969033503,-500.0,0.00010958,2]
[350576663,1737969033512,-500.0,0.00010958,2]
[350576664,1737969033521,-500.0,0.00010958,2]
[350576665,1737969033532,-512.01278081,0.00010958,2]
[350576666,1737969033541,-500.0,0.00010958,2]
[350576667,1737969033551,-500.0,0.00010958,2]
[350576668,1737969033561,-500.0,0.00010958,2]
[350576669,1737969033571,-516.82846085,0.00010958,2]
[350576670,1737969033581,-500.0,0.00010958,2]
[350576671,1737969033591,-357.19939898,0.00010958,2]
[350576672,1737969033601,-500.0,0.00010958,2]
[350576673,1737969033612,-500.0,0.00010958,2]
[350576674,1737969033622,-500.0,0.00010958,2]
[350576675,1737969033632,-500.0,0.00010958,2]
[350576676,1737969033644,-500.0,0.00010958,2]
[350576677,1737969033654,-505.47653232,0.00010958,2]
[350576678,1737969033663,-500.0,0.00010958,2]
[350576679,1737969033673,-209.64141024,0.00010958,2]
[350576680,1737969033685,-290.35858976,0.00010958,2]
[350576681,1737969033695,-503.24812449,0.00010958,2]
[350576682,1737969033705,-500.0,0.00010958,2]
[350576683,1737969033714,-548.70537442,0.00010958,2]
[350576684,1737969033724,-500.0,0.00010958,2]
[350576685,1737969033734,-2264.87150301,0.00010958,2]
[350576686,1737969033746,-766.29999999,0.00010958,2]
[350576695,1737969038453,-980.83749727,0.00010958,2]
[350576696,1737969038466,-987.99099973,0.00010958,2]
[350576697,1737969038475,-12.83748023,0.00010958,2]
[350576698,1737969038523,-2703.10901085,0.00010958,2]
[350576699,1737969038534,-423.222234,0.00010958,2]
[350576701,1737969040381,-505.7052,0.00010858,2]
[350576702,1737969040394,-360.34628172,0.00010858,2]
[350576703,1737969040403,-151.77805835,0.00010958,2]
[350576704,1737969040415,-1709.05321657,0.00010958,2]
[350576705,1737969040424,-500.0,0.00010958,2]
[350576706,1737969040434,-500.0,0.00010958,2]
[350576707,1737969040443,-500.0,0.00010958,2]
[350576708,1737969040453,-500.0,0.00010958,2]
[350576709,1737969040462,-500.0,0.00010958,2]
[350576710,1737969040472,-500.0,0.00010958,2]
[350576711,1737969040481,-500.0,0.00010958,2]
[350576712,1737969040490,-412.40338595,0.00010958,2]
[350576713,1737969040501,-107.41361533,0.00010958,2]
[350576714,1737969040510,-500.0,0.00010958,2]
[350576715,1737969040519,-500.0,0.00010958,2]
[350576716,1737969040529,-500.0,0.00010958,2]
[350576717,1737969040538,-500.0,0.00010958,2]
[350576718,1737969040547,-190.43638466,0.00010958,2]
[350576719,1737969040559,-314.4754732,0.00010958,2]
[350576720,1737969040568,-500.0,0.00010958,2]
[350576721,1737969040577,-500.0,0.00010958,2]
[350576722,1737969040586,-500.0,0.00010958,2]
[350576723,1737969040595,-500.0,0.00010958,2]
[350576724,1737969040604,-500.0,0.00010958,2]
[350576725,1737969040613,-500.0,0.00010958,2]
[350576726,1737969040623,-500.0,0.00010958,2]
[350576727,1737969040632,-500.0,0.00010958,2]
[350576728,1737969040643,-500.0,0.00010958,2]
[350576729,1737969040652,-500.0,0.00010958,2]
[350576730,1737969040662,-500.0,0.00010958,2]
[350576731,1737969040672,-500.0,0.00010958,2]
[350576732,1737969040681,-500.0,0.00010958,2]
[350576733,1737969040690,-500.0,0.00010958,2]
[350576734,1737969040700,-500.0,0.00010958,2]
[350576735,1737969040709,-500.0,0.00010958,2]
[350576736,1737969040720,-500.0,0.00010958,2]
[350576737,1737969040729,-363.11813259,0.00010958,2]
[350576738,1737969040739,-235.50299389,0.00010958,2]
[350576739,1737969040777,-264.49700611,0.00010958,2]
[350576740,1737969040787,-100.67199388,0.00010958,2]
[350576741,1737969040799,-399.32800612,0.00010958,2]
[350576742,1737969040809,-500.0,0.00010958,2]
[350576744,1737969040819,-500.0,0.00010958,2]
[350576746,1737969040828,-106.43305813,0.00010958,2]
[350576752,1737969040874,-393.56694187,0.00010958,2]
[350576754,1737969040884,-500.0,0.00010958,2]
[350576756,1737969040895,-365.35316146,0.00010958,2]
[350576758,1737969040906,-134.64683854,0.00010958,2]
[350576760,1737969040916,-500.0,0.00010958,2]
[350576762,1737969040925,-500.0,0.00010958,2]
[350576764,1737969040935,-161.5324869,0.00010958,2]
[350576766,1737969040945,-338.4675131,0.00010958,2]
[350576768,1737969040955,-500.0,0.00010958,2]
[350576770,1737969040964,-500.0,0.00010958,2]
[350576771,1737969040973,-500.0,0.00010958,2]
[350576772,1737969040981,-500.0,0.00010958,2]
[350576773,1737969040990,-500.0,0.00010958,2]
[350576774,1737969041000,-500.0,0.00010958,2]
[350576775,1737969041009,-500.0,0.00010958,2]
[350576776,1737969041018,-500.0,0.00010958,2]
[350576777,1737969041028,-500.0,0.00010958,2]
[350576778,1737969041037,-500.0,0.00010958,2]
[350576779,1737969041047,-500.0,0.00010958,2]
[350576780,1737969041056,-500.0,0.00010958,2]
[350576781,1737969041064,-256.35552458,0.00010958,2]
[350576782,1737969041088,-243.64447542,0.00010958,2]
[350576783,1737969041097,-500.0,0.00010958,2]
[350576784,1737969041106,-500.0,0.00010958,2]
[350576785,1737969041116,-500.0,0.00010958,2]
[350576786,1737969041126,-500.0,0.00010958,2]
[350576787,1737969041135,-500.0,0.00010958,2]
[350576788,1737969041146,-328.88214921,0.00010958,2]
[350576791,1737969043418,-171.11785079,0.00010958,2]
[350576792,1737969043428,-500.0,0.00010958,2]
[350576793,1737969043437,-500.0,0.00010958,2]
[350576794,1737969043446,-500.0,0.00010958,2]
[350576795,1737969043455,-500.0,0.00010958,2]
[350576796,1737969043464,-500.0,0.00010958,2]
[350576797,1737969043473,-500.0,0.00010958,2]
[350576798,1737969043482,-500.0,0.00010958,2]
[350576799,1737969043491,-509.24,0.00010958,2]
[350576800,1737969043499,-500.0,0.00010958,2]
[350576801,1737969043508,-500.0,0.00010958,2]
[350576802,1737969043517,-500.0,0.00010958,2]
[350576803,1737969043526,-500.0,0.00010958,2]
[350576804,1737969043535,-500.0,0.00010958,2]
[350576805,1737969043543,-500.0,0.00010958,2]
[350576806,1737969043553,-500.0,0.00010958,2]
[350576807,1737969043562,-500.0,0.00010958,2]
[350576808,1737969043572,-500.0,0.00010958,2]
[350576809,1737969043581,-500.0,0.00010958,2]
[350576810,1737969043591,-516.35449352,0.00010958,2]
[350576811,1737969043600,-500.0,0.00010958,2]
[350576812,1737969043610,-500.0,0.00010958,2]
[350576813,1737969043619,-500.0,0.00010958,2]
[350576814,1737969043628,-500.0,0.00010958,2]
[350576815,1737969043639,-500.0,0.00010958,2]
[350576816,1737969043649,-500.0,0.00010958,2]
[350576817,1737969043659,-500.0,0.00010958,2]
[350576818,1737969043668,-500.0,0.00010958,2]
[350576819,1737969043678,-500.0,0.00010958,2]
[350576820,1737969043688,-500.0,0.00010958,2]
[350576821,1737969043699,-500.0,0.00010958,2]
[350576822,1737969043708,-500.0,0.00010958,2]
[350576823,1737969043717,-500.0,0.00010958,2]
[350576824,1737969043727,-500.0,0.00010958,2]
[350576825,1737969043736,-500.0,0.00010958,2]
[350576826,1737969043748,-500.0,0.00010958,2]
[350576827,1737969043757,-500.0,0.00010958,2]
[350576828,1737969043766,-500.0,0.00010958,2]
[350576829,1737969043776,-500.0,0.00010958,2]
[350576830,1737969043785,-500.0,0.00010958,2]
[350576831,1737969043794,-500.0,0.00010958,2]
[350576832,1737969043803,-500.0,0.00010958,2]
[350576833,1737969043813,-500.0,0.00010958,2]
[350576834,1737969043822,-519.07561583,0.00010958,2]
[350576835,1737969043831,-500.0,0.00010958,2]
[350576836,1737969043845,-500.0,0.00010958,2]
[350576838,1737969043854,-500.0,0.00010958,2]
[350576839,1737969043863,-303.08035844,0.00010958,2]
[350576841,1737969043872,-500.0,0.00010958,2]
[350576842,1737969043882,-500.0,0.00010958,2]
[350576843,1737969043892,-500.0,0.00010958,2]
[350576844,1737969043901,-500.0,0.00010958,2]
[350576845,1737969043910,-500.0,0.00010958,2]
[350576846,1737969043919,-500.0,0.00010958,2]
[350576847,1737969043928,-500.0,0.00010958,2]
[350576848,1737969043939,-500.0,0.00010958,2]
[350576849,1737969043947,-500.0,0.00010958,2]
[350576850,1737969043957,-500.0,0.00010958,2]
[350576851,1737969043966,-500.0,0.00010958,2]
[350576852,1737969043975,-500.0,0.00010958,2]
[350576853,1737969043984,-500.0,0.00010958,2]
[350576854,1737969043993,-500.0,0.00010958,2]
[350576855,1737969044002,-500.0,0.00010958,2]
[350576856,1737969044011,-500.0,0.00010958,2]
[350576857,1737969044020,-448.312203,0.00010958,2]
[350576858,1737969044029,-500.0,0.00010958,2]
[350576859,1737969044038,-500.0,0.00010958,2]
[350576860,1737969044047,-500.0,0.00010958,2]
[350576861,1737969044056,-500.0,0.00010958,2]
[350576862,1737969044065,-500.0,0.00010958,2]
[350576863,1737969044074,-500.0,0.00010958,2]
[350576864,1737969044083,-500.0,0.00010958,2]
[350576865,1737969044091,-4795.5341023,0.00010958,2]
[350576866,1737969044103,-2599.444995,0.00010958,2]
[350576867,1737969044113,-3229.00002311,0.00010958,2]
[350576868,1737969044124,-1981.99204249,0.00010958,2]
[350576869,1737969044161,-3851.88067642,0.00010958,2]
[350576870,1737969044183,-4221.1200169,0.00010958,2]
[350576871,1737969044198,-501.05350463,0.00010958,2]
[350576872,1737969044212,-3580.775,0.00010958,2]
[350576873,1737969044222,-1521.71871372,0.00010958,2]
[350576874,1737969044233,-935.73083321,0.00010958,2]
[350576875,1737969046255,-2026.92948606,0.00010958,2]
[350576877,1737969046363,-337.122019,0.00010958,2]
[350576878,1737969046372,-32228.68001495,0.00010958,2]
[350576879,1737969046381,-247.82,0.00010958,2]
[350576880,1737969046390,-11965.0,0.00010987,2]
[350576881,1737969046400,-249.6832,0.00010997,2]
[350576882,1737969046409,-1105.0,0.00011,2]
[350576883,1737969046418,-2738.0,0.00011,3]
[350576884,1737969046427,-500.0,0.00011041,2]
[350576885,1737969046436,-500.0,0.00011096,2]
[350576886,1737969046445,-500.0,0.00011096,2]
[350576887,1737969046454,-500.0,0.00011096,2]
[350576888,1737969046463,-500.0,0.00011096,2]
[350576889,1737969046472,-356.7040842,0.00011096,2]
[350576890,1737969046481,-500.0,0.00011096,2]
[350576891,1737969046490,-500.0,0.00011096,2]
[350576892,1737969046499,-500.0,0.00011097,2]
[350576893,1737969046507,-500.0,0.00011097,2]
[350576894,1737969046516,-500.0,0.00011097,2]
[350576895,1737969046526,-500.0,0.00011097,2]
[350576896,1737969046535,-500.0,0.00011097,2]
[350576897,1737969046544,-500.0,0.00011097,2]
[350576898,1737969046553,-500.0,0.00011097,2]
[350576899,1737969046562,-500.0,0.00011097,2]
[350576900,1737969046571,-500.0,0.00011097,2]
[350576901,1737969046580,-500.0,0.00011097,2]
[350576902,1737969046589,-500.0,0.00011097,2]
[350576903,1737969046598,-500.0,0.00011097,2]
[350576904,1737969046607,-5812.98,0.00011097,2]
[350576905,1737969046616,-1184.0,0.00011097,2]
[350576906,1737969046625,-1778.69,0.00011097,2]
[350576907,1737969046634,-500.0,0.00011097,2]
[350576908,1737969046645,-1299.39,0.00011097,2]
[350576909,1737969046654,-1680.91,0.00011097,2]
[350576910,1737969046663,-500.0,0.00011097,2]
[350576911,1737969046849,-500.0,0.00011097,2]
[350576912,1737969046863,-2466.69,0.00011097,2]
[350576913,1737969046872,-500.0,0.00011097,2]
[350576914,1737969046882,-500.0,0.00011097,2]
[350576915,1737969046892,-500.0,0.00011097,2]
[350576916,1737969046902,-500.0,0.00011097,2]
[350576917,1737969046912,-500.0,0.00011097,2]
[350576918,1737969046922,-500.0,0.00011097,2]
[350576919,1737969046932,-500.0,0.00011098,2]
[350576920,1737969046942,-500.0,0.00011098,2]
[350576921,1737969046951,-500.0,0.00011098,2]
[350576922,1737969046960,-500.0,0.00011098,2]
[350576923,1737969046970,-500.0,0.00011098,2]
[350576924,1737969046979,-500.0,0.00011098,2]
[350576925,1737969046988,-500.0,0.00011098,2]
[350576926,1737969046997,-500.0,0.00011098,2]
[350576927,1737969047006,-500.0,0.00011098,2]
[350576928,1737969047015,-500.0,0.00011098,2]
[350576929,1737969047024,-500.0,0.00011098,2]
[350576930,1737969047033,-500.74916719,0.00011098,2]
[350576931,1737969047042,-500.0,0.00011098,2]
[350576932,1737969047052,-500.0,0.00011098,2]
[350576933,1737969047061,-500.42584992,0.00011098,2]
[350576934,1737969047071,-500.0,0.00011098,2]
[350576935,1737969047080,-500.0,0.00011098,2]
[350576936,1737969047089,-500.0,0.00011098,2]
[350576937,1737969047099,-500.0,0.00011098,2]
[350576938,1737969047107,-500.0,0.00011098,2]
[350576939,1737969047117,-502.433695,0.00011098,2]
[350576940,1737969047126,-273.46980237,0.00011098,2]
[350576941,1737969047136,-248.41018001,0.00011098,2]
[350576942,1737969047147,-500.0,0.00011098,2]
[350576943,1737969047156,-535.74705755,0.00011098,2]
[350576944,1737969047165,-503.50850436,0.00011098,2]
[350576945,1737969047174,-500.0,0.00011098,2]
[350576946,1737969047184,-500.0,0.00011098,2]
[350576947,1737969047193,-500.0,0.00011098,2]
[350576948,1737969047203,-500.0,0.00011098,2]
[350576949,1737969047212,-500.0,0.00011098,2]
[350576950,1737969047221,-214.08057621,0.00011098,2]
[350576951,1737969047232,-500.0,0.00011098,2]